Cogmind - Beta 15 @@@ ROGUE MODE // 2025.08.02 @ 11:53:20 Player: Minty Result: Destroyed by S-10 Pest with Light Assault Rifle Performance ------------- Evolutions (0) 0 Regions Visited (2) 400 Robots Destroyed (20) 100 Value Destroyed (692) 692 Prototype IDs (11) 220 Alien Tech Used (0) 0 Bonus (0) 0 TOTAL SCORE: 1412 Bonus ------- None Cogmind --------- Core Integrity 0/250 Matter 300/300 Energy 198/200 System Corruption 0% Temperature Cool (0) Movement Rolling (110) Ox2 Location -10/Subcaves Parts ------- > --- POWER (1+1) ------ Subdweller Power Source > --- PROPULSION (2) --- Wheel Wheel > --- UTILITY (2) ------ Light Humpback > --- WEAPON (2) ------- Powered Cannon > --- INVENTORY (25) --- Light Treads Wheel Wheel Small Storage Unit Subdweller Optics Weapon Shielding Scrap Shield Subdweller Beam Cannon Subdweller Beam Cannon Subdweller Beam Cannon Battle Rifle Slug Cannon Grenade Launcher Shrapnel Trap Peak State ------------ > --- POWER ------------ Subdweller Power Source > --- PROPULSION ------- Light Treads Light Treads > --- UTILITY ---------- Light Humpback > --- WEAPON ----------- Powered Cannon > --- INVENTORY -------- Wheel Wheel Small Storage Unit Subdweller Optics Weapon Shielding Scrap Shield Subdweller Beam Cannon Subdweller Beam Cannon Subdweller Beam Cannon Battle Rifle Slug Cannon Grenade Launcher Shrapnel Trap [Rating: 22] Favorites ----------- Power Ion Engine Engine Ion Engine Power Core Light Nuclear Core Propulsion Light Treads Treads Light Treads Leg Aluminum Leg Wheel Wheel Utility Small Storage Unit Device Tractor Beam Storage Small Storage Unit Protection Weapon Shielding Weapon Subdweller Beam Cannon Energy Gun Medium Laser Energy Cannon Subdweller Beam Cannon Ballistic Gun Assault Rifle Launcher Grenade Launcher Build | -11 -10 -10 ------- Run | Yrd Mat Sub Slots Evolved . | . . . Power . | . . . Propulsion . | . . . Utility . | . . . Weapon . | . . . Parts Attached 22 | . 6 16 Power 3 | . 1 2 Engine 2 | . 1 1 Core 1 | . . 1 Reactor . | . . . Propulsion 5 | . 1 4 Treads 2 | . . 2 Leg 1 | . 1 . Wheel 2 | . . 2 Hover . | . . . Flight . | . . . Utility 5 | . 2 3 Device 3 | . 2 1 Storage 1 | . . 1 Processor . | . . . Hackware . | . . . Protection 1 | . . 1 Artifact . | . . . Weapon 9 | . 2 7 Energy Gun 1 | . . 1 Energy Cannon 5 | . . 5 Ballistic Gun 2 | . 1 1 Ballistic Cannon . | . . . Launcher 1 | . 1 . Special Weapon . | . . . Impact Weapon . | . . . Slashing Weapon . | . . . Piercing Weapon . | . . . Special Melee Weapon . | . . . Unidentified Prototypes 1 | . . 1 Parts Lost 6 | . 2 4 Power 3 | . 1 2 Propulsion 1 | . . 1 Utility 2 | . 1 1 Weapon . | . . . Highest Loss Streak 2 | . 1 2 To Critical Strikes . | . . . Average Backups 7 | . 7 7 Power . | . . . Propulsion 2 | . 4 2 Utility 2 | . 1 2 Weapon 2 | . . 2 Tool/Special . | . . . Unused Backups 15 | . 7 8 Power 1 | . 1 . Propulsion 5 | . 2 3 Utility 6 | . 2 4 Weapon 3 | . 2 1 Tool/Special . | . . . Average Slot Usage (%) 92 | . 93 91 Engine 10 | . 13 10 Treads 22 | . . 25 Leg 4 | . 28 2 Storage 13 | . 14 13 Protection 10 | . . 11 Energy Gun 1 | . 14 . Energy Cannon 23 | . . 25 Ballistic Gun 1 | . 13 . Peak Build Rating 22 | . 8 22 Average Rating 9 | . 6 10 On Entrance 6 | 6 6 8 Naked Turns . | . . . Heaviest Build 61 | 11 16 61 Greatest Support 40 | 20 20 40 Greatest Overweight (x) 2 | . . 2 Average Overweight (x) . | . . . Largest Inventory Capacity 25 | . 8 25 Average Capacity 10 | . 8 10 Most Carried 15 | . 8 15 Average Carried 8 | . 7 8 Final Capacity 25 | 8 8 25 Final Carried 15 | 6 8 15 Class Distribution -------------------- 100% | Mutant Dominant Class ---------------- Mutant | -10/Materials Mutant | -10/Subcaves Resources | -11 -10 -10 ----------- Run | Yrd Mat Sub Matter Collected 728 | 200 151 377 Remotely 140 | . 135 5 Salvage Created 836 | . 204 632 Parts 47 | . 15 32 Haulers Intercepted . | . . . Recyclers Shooed 3 | . 3 . Parts Field Recycled . | . . . Retrieved Matter . | . . . Parts Self-Destructed 20 | . . 20 Prevented . | . . . Kills | -11 -10 -10 ------- Run | Yrd Mat Sub Combat Hostiles Destroyed 19 | . 5 14 Guns 5 | . 4 1 Cannons 10 | . . 10 AOE 4 | . 1 3 Classes Destroyed 7 | . 3 4 Recycler 1 | . 1 . Swarmer 3 | . 3 . Grunt 2 | . 2 . Sentry 1 | . . 1 Artisan 1 | . . 1 Cobbler 1 | . . 1 Subdweller 13 | . . 13 Best Kill Streak 4 | . 4 3 Combat Bots Only 4 | . 4 3 Max Kills in Single Turn 2 | . 1 2 Gunslinging . | . . . Exploded 2 | . 1 2 Melee . | . . . Uniques/NPCs Destroyed . | . . . Combat | -11 -10 -10 -------- Run | Yrd Mat Sub Hostile Shots Fired 103 | . 55 48 Missed 31 | . 13 18 Hits 72 | . 42 30 Projectile 72 | . 42 30 AOE 2 | . . 2 Critical Strikes 1 | . . 1 Damage Taken 1160 | . 372 788 Core 250 | . 93 157 Absorbed by Shields . | . . . Redirected to Shielding 20 | . . 20 Core Remaining (%) 100 | 100 . . Volleys Fired 73 | . 25 48 Largest 2 | . 2 2 Hottest 160 | . 80 160 Shots Fired 128 | . 50 78 Gun 55 | . 48 7 Cannon 59 | . . 59 Launcher 14 | . 2 12 Special . | . . . Kinetic 27 | . 23 4 Thermal 87 | . 25 62 Explosive 14 | . 2 12 Electromagnetic . | . . . Robot Hit Streak 14 | . 5 14 Robot Miss Streak 4 | . 4 3 Penetration Max . | . . . Secondary Targets 2 | . 2 . Max Gunslinging Chain 1 | . 1 . Shots Hit Robots 59 | . 22 37 Core Hits 33 | . 10 23 Critical Kills . | . . . Critical Parts Destroyed . | . . . Critical Strikes 2 | . 2 . Burn 2 | . 2 . Melee Attacks . | . . . Impact . | . . . Slashing . | . . . Piercing . | . . . Sneak Attacks . | . . . Combat Hostiles . | . . . Follow-up Attacks . | . . . Damage Inflicted 1683 | . 392 1291 Guns 314 | . 237 77 Cannons 843 | . . 843 Explosions 518 | . 147 371 Melee . | . . . Ramming 8 | . 8 . Kinetic 140 | . 88 52 Thermal 1017 | . 149 868 Explosive 518 | . 147 371 Electromagnetic . | . . . Impact . | . . . Slashing . | . . . Piercing . | . . . Highest Corruption . | . . . Average Corruption . | . . . Corruption Purged . | . . . Corruption Blocked . | . . . Overload Shots 2 | . . 2 Overflow Damage 18 | . 2 16 Projectiles 16 | . . 16 Explosions 2 | . 2 . Melee . | . . . Knockbacks . | . . . Impact . | . . . Kinetic . | . . . Secondary . | . . . Self-Inflicted Damage 46 | . . 46 Shots 2 | . . 2 Rammed 1 | . . 1 Targets Rammed 2 | . 1 1 Kicked 1 | . 1 . Crushed . | . . . Highest Temperature 312 | . 63 312 Average Temperature 44 | . 23 61 Received Heat Transfer 507 | . 54 453 Effects 1 | . . 1 Energy Bleed 1 | . . 1 Siege Activations . | . . . Martial Activations . | . . . Shielding Activations . | . . . Robots Disrupted . | . . . Combat Hostiles . | . . . Robots Corrupted . | . . . Combat Hostiles . | . . . Parts Fried . | . . . Impact Corruptions . | . . . Robots Melted . | . . . Combat Hostiles . | . . . Parts Melted . | . . . Heat Transferred 1554 | . 592 962 Parts Sabotaged . | . . . Parts Stolen . | . . . Parts Stripped . | . . . Power Chain Reactions . | . . . Alert | -11 -10 -10 ------- Run | Yrd Mat Sub Maximum Alert Level . | . . . Low Security (%) 100 | . 100 . Level 1 . | . . . Level 2 . | . . . Level 3 . | . . . Level 4 . | . . . Level 5 . | . . . High Security . | . . . Max Security . | . . . Peak Influence 109 | . 109 . Initial . | . . . Average 35 | . 35 . Influence Increases 189 | . 169 20 Destroy 0b10 Robot/C 120 | . 100 20 Destroy 0b10 Robot/NC 5 | . 5 . Destroy Leader 20 | . 20 . Disable Machine 15 | . 15 . Destroy Structure 14 | . 14 . Lose Combat Pursuer 15 | . 15 . Influence Decreases 189 | . 110 79 Entered New Map 29 | . . 29 Time Decay 130 | . 90 40 Lost Part 30 | . 20 10 Squads Dispatched . | . . . Investigation . | . . . Extermination . | . . . Reinforcement . | . . . Assault . | . . . Garrison . | . . . Intercept . | . . . Searches Triggered . | . . . Construction Impeded . | . . . Haulers Reinforced . | . . . Active Scanning Responses . | . . . Cargo Convoy Interrupts . | . . . Stealth | -11 -10 -10 --------- Run | Yrd Mat Sub Distress Signals . | . . . Communications Jammed . | . . . Distress Signals . | . . . Times Spotted 25 | . 8 17 Peak Tracking Total 6 | . 3 6 Tactical Retreats 1 | . 1 . Traps | -11 -10 -10 ------- Run | Yrd Mat Sub Traps Triggered 1 | . . 1 Indirectly . | . . . Trap Hack Attempts . | . . . Triggered . | . . . Disarmed . | . . . Reprogrammed . | . . . Reused . | . . . Traps Extracted . | . . . Installed . | . . . Triggered . | . . . Most Traps Carried 1 | . . 1 Machines | -11 -10 -10 ---------- Run | Yrd Mat Sub Machines Disabled 2 | . 1 1 Max in Single Turn 1 | . 1 1 Machines Repaired . | . . . Machines Dismantled . | . . . Machines Sabotaged . | . . . Overloaded Fab Kills . | . . . Hacking | -11 -10 -10 --------- Run | Yrd Mat Sub Machines Accessed 5 | . 3 2 Terminals 2 | . 2 . Fabricators . | . . . Repair Stations . | . . . Recycling Units 1 | . 1 . Scanalyzers . | . . . Garrison Access . | . . . Total Hacks 15 | . 10 5 Successful 9 | . 4 5 Failed 6 | . 6 . Catastrophic 1 | . 1 . Database Lockouts . | . . . Manual 4 | . 4 . Terminals 7 | . 7 . Fabricators . | . . . Repair Stations . | . . . Recycling Units 3 | . 3 . Scanalyzers . | . . . Garrison Access . | . . . Terminal Hacks 6 | . 1 5 Record 4 | . . 4 Robot Analysis 1 | . 1 . Proto ID Catalog 1 | . . 1 Fabricator Hacks . | . . . Repair Station Hacks . | . . . Recycling Unit Hacks 2 | . 2 . Report Inventory 1 | . 1 . Retrieve Components 1 | . 1 . Scanalyzer . | . . . Garrison Access Hacks . | . . . Unauthorized Hacks 1 | . 1 . Terminals 1 | . 1 . Disrupt 1 | . 1 . Fabricators . | . . . Repair Stations . | . . . Recycling Units . | . . . Scanalyzers . | . . . Garrison Access . | . . . Data Cores Recovered . | . . . Used . | . . . Hacking Detections 2 | . 2 . Full Trace Events 1 | . 1 . Feedback Events . | . . . Feedback Blocked . | . . . Robot Schematics Acquired . | . . . Robots Built . | . . . Authchips . | . . . Time . | . . . Total Robot Build Rating . | . . . Part Schematics Acquired . | . . . Parts Built . | . . . Authchips . | . . . Time . | . . . Total Part Build Rating . | . . . Parts Repaired . | . . . Time . | . . . Parts Recycled . | . . . Recycled Matter . | . . . Retrieved Matter . | . . . Retrieved Components 1 | . 1 . Parts Scanalyzed . | . . . Part Schematics Acquired . | . . . Parts Damaged . | . . . Bothacking | -11 -10 -10 ------------ Run | Yrd Mat Sub Used RIF Installer . | . . . Robots Hacked . | . . . Non-combat . | . . . Combat . | . . . Robot Hacks Applied . | . . . Relay Couplers Released . | . . . Fabnet Peak Effective % . | . . . Robots Rewired . | . . . Allies Hacked . | . . . Hacks Repelled . | . . . Allies | -11 -10 -10 -------- Run | Yrd Mat Sub Total Allies . | . . . Largest Group . | . . . Highest-Rated Group . | . . . Highest-Rated Ally . | . . . Total Orders . | . . . Ally Attacks . | . . . Total Damage . | . . . Kills . | . . . Allies Corrupted . | . . . Allies Melted . | . . . Intel | -11 -10 -10 ------- Run | Yrd Mat Sub Active Infowar (turns) . | . . . Robot Analysis Total 1 | . 1 . Derelict Logs Recovered 1 | . . 1 Drone Launches . | . . . Drone Recoveries . | . . . Exploration | -11 -10 -10 ------------- Run | Yrd Mat Sub Turns Passed 3472 | . 305 3167 Spaces Moved 1669 | 1 176 1492 Core . | . . . Treads 1260 | . . 1260 Legs 335 | 1 176 158 Wheels 74 | . . 74 Hover . | . . . Flight . | . . . Fastest Speed 110 | 120 120 110 Average Speed 158 | 120 120 162 Slowest Speed 240 | 120 120 240 Overloaded Moves . | . . . Propulsion Burnouts . | . . . Robots Hopped . | . . . Potential Cave-ins . | . . . Cave-ins Triggered . | . . . Exploration Rate (%) 37 | 2 35 75 Regions Visited 2 Branch Regions 1 Pre-discovered Areas 2 | . . 2 Known Exits Taken . | . . . Unknown Exits Taken 2 | 1 1 . Scrap Searched . | . . . Spaces Dug . | . . . Terrain Destroyed 60 | . 14 46 Melee . | . . . Projectile 8 | . . 8 AOE 52 | . 14 38 Terrain Rammed . | . . . Walls Destroyed . | . . . Machines Disabled . | . . . Actions | -11 -10 -10 --------- Run | Yrd Mat Sub Total 2366 | . 219 2147 Wait 546 | . . 546 Move 1667 | . 175 1492 Hop . | . . . Pick Up 27 | . 7 20 Fast Attach 4 | . 1 3 Attach 10 | . 2 8 Detach 3 | . . 3 Swap 19 | . 4 15 Drop 15 | . 4 11 Fire 73 | . 25 48 Melee . | . . . Ram . | . . . Kick 1 | . 1 . Crush 1 | . . 1 Escape Stasis . | . . . Rewire . | . . . Trap . | . . . Miscellaneous . | . . . Route ------- -11/Scrapyard -10/Materials (discovered 2 exits: [*Mat] / *Sub) -10/Subcaves (discovered 1 exit: [*Mat]) History --------- Turn | Location | Event 1 | -11/Scrapyard | Discovered new exit (range 0) 1 | -11/Scrapyard | Entered Materials 283 | -10/Materials | Discovered new exit (range 9) 298 | -10/Materials | Discovered new exit (range 8) 306 | -10/Materials | Entered Subcaves 306 | -10/Subcaves | A Subdweller sparked back to life 306 | -10/Subcaves | A Subdweller sparked back to life 307 | -10/Subcaves | Approached by a straggling Scientist 320 | -10/Subcaves | Core integrity fell below 50% 340 | -10/Subcaves | Build established: Mutant 342 | -10/Subcaves | Found Prototype Device 347 | -10/Subcaves | Identified Power Bank 348 | -10/Subcaves | Attached Power Bank, gained temporary slots: Power x3 470 | -10/Subcaves | A swath of the cavern ceiling suddenly collapsed 515 | -10/Subcaves | Shifting Twisted Machinery released Barrage Gun 518 | -10/Subcaves | Shifting Twisted Machinery released Sub. Beam Cannon 603 | -10/Subcaves | Learned location of Zion (-6) 832 | -10/Subcaves | Curiously followed by a Cobbler waking with a query about "LVR3C" 860 | -10/Subcaves | Discovered new exit (range 16) 1919 | -10/Subcaves | A swath of the cavern ceiling suddenly collapsed 2142 | -10/Subcaves | Core integrity fell below 20% 2252 | -10/Subcaves | Visited Clippyterm 2256 | -10/Subcaves | Learned Research security intel 2457 | -10/Subcaves | Shifting Twisted Machinery released Sub. Beam Cannon 2473 | -10/Subcaves | Shifting Twisted Machinery released Shrapnel Trap 2539 | -10/Subcaves | Shifting Twisted Machinery released Sub. Beam Cannon 2644 | -10/Subcaves | Met a Zionite searching for "candidates" 3134 | -10/Subcaves | Visited 4L-MR0's lab 3160 | -10/Subcaves | Found Powered Cannon 3358 | -10/Subcaves | Attached Powered Cannon, gained temporary slot: Power 3473 | -10/Subcaves | Destroyed by S-10 Pest with Light Assault Rifle Last Messages --------------- VL-GR5's Exoskeleton "Deathgrip" Powered Cannon 03152_ 4L-MR0 mumbles to no one in particular: "Damn Subs sneaking around stealing my stuff." 03153_ 4L-MR0 mumbles: "I'm surprised some of them are even willing to come in here given their fear of my usual visitors." 03153_ Testing Chamber breached. 03160_ 4L-MR0 mumbles: "Who knows where that last prototype ended up, probably tossed aside somewhere as if it were useless junk..." 03160_ Acquired Powered Cannon. 03350_ OO-QND(R): "SUBMAD!" 03351_ Critical hit (Meltdown: +270). 03358_ Core temporarily expanded with Power slot. 03374_ OO-QND(R) affixes Scrap Shield Fragment to Scrap Shield. 03377_ Lgt. Treads destroyed. 03381_ OO-QND(R) destroyed. 03397_ Acquired 25 matter. 03408_ LB-SCK(O) cries out in pain. 03408_ LB-SCK(O) destroyed. 03412_ Acquired Wheel. Map ----- +----------------------------------------------------+ | ??????????????????# ##????#" ### #???? | | ??????????????????# ###??#"""??### ##???? | | ??????????????????# #??#"""???## #????? | | ??????????????????## #?# """??## #????? | | ??????????????????## ### ## ""?##" #????? | | ??????????????????# #?# ## ?????# "" "##???? | | ??????????????????## ## # ##???????#### #""#???? | | ??????????????????# ######??????## "##???? | | ??????????????????## ## #### ##???### #"#??? | | ??????????????????# #### ##??# "#???? | | ??????????####????## #?# #???? | | ??????????# ####??### #?##### #??? | | ??????????# ##?### ######### #??? | | ???????##### ### ##### ##### | | ??????## # ## ##### | | ??????# ## ####### #??# | | ?????## #### ######?????# #??# | | ????## # ##?## ####??????## ## #??# | | ???## ### ##?## ########"""#### #?## | | #### #?## #??## ##" #?# ### | | ### ##### #??## ### #?# ## | | #### #??# #### #### # | | & " ### #### ####?# # ### | | & ### #???## #?# | | #[ & ##?# #??## =[! #?# | | # " & #??##@ ##??# & &## #?# | | ### # " # ###???# #???## " # ##### | | ### ### ## #?????# #????#""" # ###?## | | ### # #?????# #???# " ## ###??## | | # #?# ## #?????# #?# ######????# | | ### #### #### #????? ### #?????????# | | ## ## #??### #??? ### #?????????# | | # ##????######??# #?########??????????#### | | # #### #????????????# #??????????????????????? | | ##??## #????????????# ???????????????????????? | | ##????# #????????????# ???????????????????????? | | #?????# #????????????# ???????????????????????? | | ##???## #????????????# ???????????????????????? | | ##### #????????????# ???????????????????????? | | #????????????# s???????????????????????? | | ##########???????????? ???????????????????????? | | ?????????????????????? ????????????????????????? | | ???????????????????????? ????????????????????????? | | ?????????????????????????????????????????????????? | | #???????????????????????????????????????????????? | | #???????????????????????????????????????????????? | | #????????????????????????????????????????????????? | | ?????????????????????????????????????????????????? | | ?????????????????????##########??????????????????? | | ##??????????????????## """""##?????????????????? | +----------------------------------------------------+ Best States ------------- Heat Dissipation 25 Energy Generation 15 Energy Capacity 250 Matter Stores 300 Matter Capacity 300 Sight Range 16 Terrain Scan Density 10 Weapon Shielding 33 Evasion (%) 55 Recoil Reduction 2 Item Schematics ----------------- None Robot Schematics ------------------ None Fabricated ------------ Nothing Repaired ---------- Nothing Alien Tech Used ----------------- None Achievements -------------- None Challenges ------------ None Game ------ Seed FactoryMassDatajack Manual? 0 Play Time 00:13:13 Cumulative 1157.4 hours Start 2025.08.02 @ 11:35:27 End 2025.08.02 @ 11:53:20 Sessions 1 Manual Loads 0 Difficulty Rogue Special Mode None Game No. 1426 Rogue 1142 Adventurer 124 Explorer 160 Win Type - Total 52 Types 38/0/8/4/1/0/0/1/0/0 Lore% 92 Gallery% 88 Achievement% 81 Wizard Run 0 Options --------- Layout 0 ASCII 0 Keyboard 1 Movement Numpad Keybinds 0 Fullscreen 2 Font 18/X11 Map View 76x50 Zoom Use 0% Tactical HUD 1 Map Filters NONE Filters NONE Steam 1 RUN: 34b00d51-dfad-4f19-948e-4aa38c59a16f